bitfinex-derivatives/quotes_BTCF0:USTF0_20250620
["timestamp","ask_amount","ask_price","bid_price","bid_amount"]
[1750431589432,1.7661304,104020.0,104010.0,0.4083236]
[1750431589637,0.37370599,104020.0,104010.0,0.4083236]
[1750431589839,0.75596179,104020.0,104010.0,0.4683236]
[1750431590049,1.04596179,104020.0,104010.0,0.4083236]
[1750431590239,1.05596179,104020.0,104010.0,0.4083236]
[1750431590548,0.92596179,104020.0,104010.0,0.4083236]
[1750431590741,1.16356179,104020.0,104010.0,0.4083236]
[1750431590938,0.60356179,104020.0,104010.0,0.2403236]
[1750431591140,1.18356179,104020.0,104010.0,1.0538036]
[1750431591440,1.02356179,104020.0,104010.0,1.0538036]
[1750431591643,1.03356179,104020.0,104010.0,1.0538036]
[1750431591838,1.02356179,104020.0,104010.0,1.0538036]
[1750431592038,1.53436179,104020.0,104010.0,1.0578036]
[1750431592243,1.43466179,104020.0,104010.0,1.0648036]
[1750431592440,1.00466179,104020.0,104010.0,0.82448]
[1750431592638,1.00466179,104020.0,104010.0,1.0167543]
[1750431592946,1.47466179,104020.0,104010.0,0.81688]
[1750431593143,1.00466179,104020.0,104010.0,1.0087543]
[1750431593350,1.53466179,104020.0,104010.0,0.81648]
[1750431593546,1.53466179,104020.0,104010.0,0.81688]
[1750431593847,1.9398644,104020.0,104010.0,0.81688]
[1750431594142,1.8340304,104020.0,104010.0,0.0034]
[1750431594345,1.8898644,104020.0,104010.0,0.17144]
[1750431594648,2.3858644,104020.0,104010.0,0.17144]
[1750431595642,2.4958644,104020.0,104010.0,0.17144]
[1750431595844,2.2858644,104020.0,104010.0,0.17144]
[1750431596052,2.3858644,104020.0,104010.0,0.17144]
[1750431596744,3.29871518,104020.0,104010.0,0.003]
[1750431597044,0.6882743,104010.0,104000.0,0.00096149]
[1750431597346,2.39760622,104010.0,104000.0,0.00096149]
[1750431597541,2.39760622,104010.0,103990.0,0.16884]
[1750431597542,0.1922928,104000.0,103990.0,0.16884]
[1750431597745,0.1922928,104000.0,103970.0,1.02417467]
[1750431597746,0.1923297,103980.0,103970.0,1.02417467]
[1750431597941,1.43683569,103980.0,103970.0,1.64584177]
[1750431598246,1.47663569,103980.0,103970.0,0.99988177]
[1750431598438,1.8260043,103980.0,103970.0,0.00136177]
[1750431598642,0.96663569,103980.0,103970.0,0.36134997]
[1750431598838,1.50663569,103980.0,103970.0,0.19370997]
[1750431599043,1.50663569,103980.0,103970.0,0.36174997]
[1750431599242,1.51063569,103980.0,103970.0,0.36274997]
[1750431599443,1.54087226,103980.0,103970.0,0.36274997]
[1750431599643,1.54087226,103980.0,103970.0,0.19470997]
[1750431599844,1.56087226,103980.0,103970.0,0.36274997]
[1750431600040,1.35087226,103980.0,103970.0,0.36274997]
[1750431600342,7e-08,103980.0,103970.0,1.69723058]
[1750431600549,0.44667,104010.0,103980.0,0.0480818]
[1750431600749,0.69046329,104010.0,104000.0,0.1922928]
[1750431601046,0.65675962,104030.0,104000.0,0.39743771]
[1750431601346,0.1922373,104030.0,104010.0,1.25862081]
[1750431601535,1.7022377,104030.0,104020.0,0.2295558]
[1750431601847,1.72095,104030.0,104020.0,0.3750729]
[1750431602145,0.0480726,104010.0,103990.0,0.2403777]
[1750431602450,0.97487499,104000.0,103990.0,0.5103912]
[1750431602640,0.668569,104000.0,103990.0,0.5103912]
[1750431602842,1.4024436,104000.0,103990.0,0.15]
[1750431603043,0.3365678,103990.0,103980.0,0.0008]
[1750431603242,1.10977379,103990.0,103980.0,0.16888]
[1750431603547,0.1923297,103980.0,103970.0,0.91502997]
[1750431603739,0.60473569,103980.0,103970.0,1.09310997]
[1750431603940,0.2310297,103980.0,103970.0,0.44818997]
[1750431604139,0.0387,103980.0,103970.0,0.44858997]
[1750431604349,0.1923297,103980.0,103970.0,0.28049647]
[1750431604546,0.7286853,103990.0,103980.0,0.1923297]
[1750431604847,1.06289129,103990.0,103980.0,0.1923297]
[1750431605044,0.1933085,104000.0,103990.0,0.1923112]
[1750431605243,0.001,104000.0,103990.0,0.5927112]
[1750431605551,0.1922558,104020.0,104010.0,0.1922743]
[1750431605745,0.7564555,104020.0,104010.0,0.03]
[1750431605942,0.0480715,104010.0,104000.0,0.16808]
[1750431606142,1.6688406,104020.0,104010.0,0.1922742]
[1750431606143,0.133133,104020.0,104010.0,0.1922742]
[1750431606353,1.06280219,104020.0,104010.0,0.0004]
[1750431606643,0.37370599,104020.0,104010.0,0.1926742]
[1750431606949,0.37370599,104020.0,104010.0,1.1149742]
[1750431607247,0.365273,104030.0,104020.0,0.1922558]
[1750431607439,0.83897899,104030.0,104020.0,0.4006358]
[1750431607643,1.62977899,104030.0,104020.0,0.20838]
[1750431607844,0.1922558,104020.0,104010.0,0.8132]
[1750431608049,1.3519304,104020.0,104010.0,0.1926743]
[1750431608245,0.54564089,104020.0,104010.0,1.0050743]
[1750431608549,0.001,104020.0,104010.0,1.4624067]
[1750431608748,0.1932558,104020.0,104010.0,1.5366067]
[1750431608947,0.56696179,104020.0,104010.0,1.0424343]
[1750431609241,0.41350599,104020.0,104010.0,1.0440343]
[1750431609447,0.41250599,104020.0,104010.0,1.4420343]
[1750431609646,0.60576179,104020.0,104010.0,1.4454343]
[1750431609844,0.001,104020.0,104010.0,1.4454343]
[1750431610046,0.1932557,104020.0,104010.0,1.4434343]
[1750431610242,0.5540557,104020.0,104010.0,1.0453543]
[1750431610551,0.56696169,104020.0,104010.0,1.0825543]
[1750431610746,0.56696169,104020.0,104010.0,0.1956743]
[1750431610953,1.7941303,104020.0,104010.0,0.17144]
[1750431611250,0.1922743,104010.0,104000.0,0.3603314]
[1750431611455,0.64298029,104010.0,104000.0,1.3665314]
[1750431611658,0.99298029,104010.0,104000.0,1.3665314]
[1750431611846,1.00378029,104010.0,104000.0,0.81344]
[1750431612042,1.7931489,104010.0,104000.0,0.0008]
[1750431612249,1.7931489,104010.0,104000.0,0.81344]
[1750431612450,1.8241067,104010.0,104000.0,0.81344]
[1750431612656,1.7241067,104010.0,104000.0,0.81344]
[1750431612950,1.9341067,104010.0,104000.0,0.16888]
[1750431613156,1.7341067,104010.0,104000.0,0.16888]
[1750431613356,1.3841067,104010.0,104000.0,0.16808]
[1750431613655,1.6518324,104010.0,103990.0,0.0008]
[1750431613860,0.0480792,103990.0,103960.0,0.0008]
[1750431614050,1.2762228,103970.0,103960.0,0.0008]
[1750431614249,1.2762228,103970.0,103950.0,0.0961895]
[1750431614250,1.6438324,103970.0,103950.0,0.0961895]
[1750431614447,1.6438324,103970.0,103960.0,0.1923667]
[1750431614448,0.84106379,103970.0,103960.0,0.1923667]
[1750431614753,0.0299578,103970.0,103960.0,0.5531667]
[1750431614949,0.677497,103990.0,103970.0,0.2885064]
[1750431615146,1.12923597,103990.0,103980.0,0.16808]
[1750431615349,0.2404136,103980.0,103960.0,0.1055798]
[1750431615554,1.17636057,103980.0,103970.0,0.81252]
[1750431615757,0.56605419,103970.0,103960.0,0.3652]
[1750431615957,0.1923852,103950.0,103940.0,0.00176205]
[1750431616156,1.66701298,103950.0,103940.0,0.00176205]
[1750431616462,1.39364437,103950.0,103940.0,0.00136205]
[1750431616652,0.67204437,103950.0,103940.0,0.36144575]
[1750431617154,1.03284437,103950.0,103940.0,0.16944205]
[1750431617359,1.38221298,103950.0,103940.0,0.16944205]
[1750431617561,1.38221298,103950.0,103940.0,0.36184575]
[1750431617855,1.03284437,103950.0,103940.0,0.19376575]
[1750431618062,1.03384437,103950.0,103940.0,0.17044205]
[1750431618359,1.38321298,103950.0,103940.0,0.36284585]
[1750431618553,0.84045917,103950.0,103940.0,0.36184585]
[1750431618756,0.66313838,103950.0,103940.0,0.36284585]
[1750431619062,0.66313838,103950.0,103940.0,0.85234205]
[1750431619252,0.66513838,103950.0,103940.0,1.04474575]
[1750431619453,1.03884437,103950.0,103940.0,0.04046205]
[1750431619657,1.54884437,103950.0,103940.0,0.16968205]
[1750431619856,1.75821298,103950.0,103940.0,0.16968205]
[1750431620162,1.85821298,103950.0,103940.0,0.19436575]
[1750431620362,1.40884437,103950.0,103940.0,0.36168575]
[1750431620656,1.03884437,103950.0,103940.0,0.16968205]
[1750431620860,1.86821298,103950.0,103940.0,0.16968205]
[1750431621060,1.69621298,103950.0,103940.0,0.16972205]
[1750431621256,1.38621298,103950.0,103940.0,0.36172575]
[1750431621461,1.79321298,103950.0,103940.0,0.17172205]
[1750431621761,1.38321298,103950.0,103940.0,0.17172205]
[1750431621955,1.38321298,103950.0,103940.0,0.00136205]
[1750431621956,1.38221298,103950.0,103940.0,0.00136205]
[1750431622160,1.47384437,103950.0,103940.0,0.16972205]
[1750431622361,1.82321298,103950.0,103940.0,0.16972205]
[1750431622553,0.67204437,103950.0,103940.0,0.36112565]
[1750431622753,0.67504437,103950.0,103940.0,0.16972205]
[1750431622958,0.67704437,103950.0,103940.0,0.16972205]
[1750431623163,0.64709119,103950.0,103940.0,0.36212565]
[1750431623356,0.9964598,103950.0,103940.0,0.16972205]
[1750431623660,0.005,103950.0,103940.0,1.01392565]
[1750431623957,0.1973851,103950.0,103940.0,1.21952205]
[1750431624163,0.005,103950.0,103940.0,1.45222565]
[1750431624361,0.003,103950.0,103940.0,1.09142565]
[1750431624551,0.003,103950.0,103940.0,1.45222565]
[1750431624752,0.003,103950.0,103940.0,1.09142565]
[1750431625263,0.0394,103960.0,103950.0,0.1923847]
[1750431625466,0.6012017,103990.0,103950.0,1.212991]
[1750431625666,0.0378,103980.0,103970.0,0.3366026]
[1750431625856,0.0378,103980.0,103970.0,0.5903826]
[1750431626053,0.59093,103980.0,103970.0,0.4554113]
[1750431626264,0.1923485,103970.0,103960.0,0.2885333]
[1750431626565,0.2706485,103970.0,103960.0,1.4328834]
[1750431626764,0.2706485,103970.0,103960.0,1.0724834]
[1750431627164,0.0783,103970.0,103960.0,1.4332834]
[1750431627956,0.0783,103970.0,103960.0,1.4700834]
[1750431628372,0.0378,103970.0,103960.0,1.6898834]
[1750431628870,0.96817106,104000.0,103990.0,0.1923115]
[1750431629073,1.46817106,104000.0,103990.0,0.17464]
[1750431629374,0.19233,103980.0,103970.0,0.6012281]
[1750431629569,1.03955901,103990.0,103980.0,0.19233]
[1750431629774,1.933265,103990.0,103980.0,0.19233]
[1750431629972,1.12693299,103990.0,103980.0,0.19233]
[1750431630171,1.12693299,103990.0,103980.0,0.90249861]
[1750431630172,0.0373,103990.0,103980.0,0.90249861]
[1750431630376,0.01861865,104000.0,103990.0,0.1923115]
[1750431630572,0.01861865,104000.0,103990.0,1.66554448]
[1750431630771,0.01861865,104000.0,103990.0,1.4998315]
[1750431631069,1.41398635,104000.0,103990.0,0.85216]
[1750431631274,1.48958635,104000.0,103990.0,0.85216]
[1750431631464,1.36568036,104000.0,103990.0,0.19504]
[1750431631671,0.28951175,104000.0,103990.0,1.0443916]
[1750431631869,0.28951175,104000.0,103990.0,1.4651916]
[1750431632078,0.25121175,104000.0,103990.0,1.4655916]
[1750431632368,0.06191865,104000.0,103990.0,1.0637916]
[1750431632578,0.002,104000.0,103990.0,1.4245916]
[1750431632763,0.002,104000.0,103990.0,1.4633916]
[1750431632764,0.195293,104000.0,103990.0,1.4633916]
[1750431632968,0.003,104000.0,103990.0,2.15240021]
[1750431633170,0.0172972,104010.0,104000.0,0.192293]
[1750431633479,0.2413025,104030.0,104020.0,0.1922561]
[1750431633678,0.65550849,104030.0,104020.0,1.0239361]
[1750431633866,0.192256,104020.0,104010.0,0.6301589]
[1750431634071,0.192256,104020.0,104010.0,1.4238745]
[1750431634272,0.1922745,104010.0,104000.0,0.6011515]
[1750431634471,0.1922745,104010.0,104000.0,0.6111515]
[1750431634673,0.2377745,104010.0,104000.0,1.4429115]
[1750431634872,0.005,104010.0,104000.0,1.79268011]
[1750431635073,0.005,104010.0,104000.0,2.23298011]
[1750431635272,0.3779415,104030.0,104020.0,0.1922561]
[1750431635572,0.75164749,104030.0,104020.0,0.8492161]
[1750431635772,0.1922561,104020.0,104010.0,0.367896]
[1750431635973,0.5422561,104020.0,104010.0,0.0795]
[1750431636274,0.1922745,104010.0,104000.0,0.009]
[1750431636470,1.42448049,104010.0,104000.0,0.84176]
[1750431636670,1.42448049,104010.0,104000.0,0.84096]
[1750431636671,1.8538491,104010.0,104000.0,0.84096]
[1750431636876,0.64368049,104010.0,104000.0,0.201293]
[1750431637077,0.2699745,104010.0,104000.0,1.033533]
[1750431637280,0.0777,104010.0,104000.0,1.033533]
[1750431637584,0.2699746,104010.0,104000.0,1.104833]
[1750431638077,0.2699746,104010.0,104000.0,0.272993]
[1750431638282,0.0412,104010.0,104000.0,1.109033]
[1750431638477,0.1932745,104010.0,104000.0,1.109033]
[1750431638777,1.6571491,104010.0,104000.0,1.030333]
[1750431638982,0.9922491,104010.0,104000.0,1.030733]
[1750431639186,0.6191745,104010.0,104000.0,1.030333]
[1750431639375,0.0769,104010.0,104000.0,1.030333]
[1750431639571,0.001,104010.0,104000.0,1.438233]
[1750431639776,0.001,104010.0,104000.0,2.14840161]
[1750431639970,0.001,104010.0,104000.0,2.34069761]
[1750431640175,0.001,104010.0,104000.0,2.11069761]
[1750431640479,0.1932745,104010.0,104000.0,1.568793]
[1750431640784,0.90344311,104010.0,104000.0,0.0064]
[1750431641081,1.9083491,104010.0,104000.0,0.0074]
[1750431641275,1.9083491,104010.0,104000.0,0.007]
[1750431641470,1.9083491,104010.0,104000.0,0.0074]
[1750431641787,1.9073491,104010.0,104000.0,0.001]
[1750431641978,1.9083491,104010.0,104000.0,0.0054]
[1750431642280,1.9083491,104010.0,104000.0,0.0044]
[1750431642583,1.9073491,104010.0,104000.0,0.0004]
[1750431642780,2.5641491,104010.0,104000.0,0.0014]
[1750431643182,2.5638691,104010.0,104000.0,0.001]
[1750431643479,0.1922931,104000.0,103990.0,0.1746]
[1750431643685,1.8959677,104000.0,103990.0,0.3669116]
[1750431643884,1.8959677,104000.0,103990.0,0.3673116]
[1750431644084,1.8959677,104000.0,103990.0,0.0004]
[1750431644278,1.8959677,104000.0,103990.0,0.1927115]
[1750431644584,1.92590744,104000.0,103990.0,0.1927115]
[1750431644784,1.92690744,104000.0,103990.0,0.0024]
[1750431644981,0.19233,103980.0,103970.0,0.01680242]
[1750431645187,1.84693624,103980.0,103970.0,0.19060242]
[1750431645379,2.25673624,103980.0,103970.0,0.01640242]
[1750431645782,1.35736763,103980.0,103970.0,0.20835092]
[1750431645985,1.86736763,103980.0,103970.0,0.20835092]
[1750431646184,1.66736763,103980.0,103970.0,0.20835092]
[1750431646380,1.87736763,103980.0,103970.0,0.38295092]
[1750431646578,1.89686763,103980.0,103970.0,0.19100242]
[1750431646886,1.39686763,103980.0,103970.0,0.38335092]
[1750431647083,1.39686763,103980.0,103970.0,0.20875092]
[1750431647279,0.30156164,103980.0,103970.0,0.38435092]
[1750431647480,0.001,103980.0,103970.0,0.75015092]
[1750431647681,0.19333,103980.0,103970.0,0.82865092]
[1750431647881,0.19333,103980.0,103970.0,0.78775092]
[1750431648085,0.27213,103980.0,103970.0,0.78775092]
[1750431648587,0.27213,103980.0,103970.0,0.82865092]
[1750431648789,0.27213,103980.0,103970.0,0.02240242]
[1750431649089,1.82596618,103980.0,103970.0,0.85344242]
[1750431649287,1.47659757,103980.0,103970.0,0.85304242]
[1750431649483,1.94596618,103980.0,103970.0,0.19700242]
[1750431649787,0.67579757,103980.0,103970.0,0.19700242]
[1750431649979,0.99579757,103980.0,103970.0,0.19700242]
[1750431650181,1.39659757,103980.0,103970.0,0.19700242]
[1750431650381,0.66289158,103980.0,103970.0,0.38935092]
[1750431650576,1.39659757,103980.0,103970.0,0.19700242]
[1750431650776,1.29326757,103980.0,103970.0,0.19700242]
[1750431650976,1.74496618,103980.0,103970.0,0.02240242]
[1750431651285,0.77479757,103980.0,103970.0,0.38895092]
[1750431651581,1.19479757,103980.0,103970.0,0.19660242]
[1750431651775,1.83496618,103980.0,103970.0,0.19660242]
[1750431651975,1.83496618,103980.0,103970.0,0.02200242]
[1750431652185,1.83496618,103980.0,103970.0,0.19700242]
[1750431652781,1.83496618,103980.0,103970.0,0.19660242]
[1750431653180,1.83496618,103980.0,103970.0,0.19700242]
[1750431654786,1.9788848,103980.0,103970.0,0.19520242]
[1750431655283,1.9788848,103980.0,103970.0,0.38715092]
[1750431655483,1.9788848,103980.0,103970.0,0.38755092]
[1750431656084,1.48559757,103980.0,103970.0,0.38755092]
[1750431656287,1.48559757,103980.0,103970.0,1.57163815]
[1750431656288,0.02996158,103980.0,103970.0,1.57163815]
[1750431656483,0.0422,103990.0,103980.0,0.19233]
[1750431656683,0.02993065,103990.0,103980.0,1.91477723]
[1750431656889,0.4001,104000.0,103990.0,0.1923115]
[1750431656890,0.553093,104000.0,103990.0,0.1923115]
[1750431657186,0.3608,104000.0,103990.0,1.1055915]
[1750431657380,0.4001,104020.0,104010.0,0.1922745]
[1750431657579,1.03820097,104020.0,104010.0,1.0196745]
[1750431657985,0.02993898,104020.0,104010.0,1.92280491]
[1750431658185,0.1932381,104030.0,104020.0,0.192256]
[1750431658379,0.5540381,104030.0,104020.0,0.0823]
[1750431658579,0.92774409,104030.0,104020.0,0.0823]
[1750431658780,0.002,104020.0,104010.0,0.38710223]
[1750431659084,0.002,104020.0,104010.0,1.57510223]
[1750431659282,0.0319418,104020.0,104010.0,1.57510223]
[1750431659587,0.0319418,104020.0,104010.0,2.47743264]
[1750431659778,0.0319418,104020.0,104010.0,2.72743264]
[1750431660287,1.8568124,104020.0,104010.0,0.02639223]
[1750431660488,2.16502664,104020.0,104010.0,0.0008]
[1750431660677,2.19911506,104020.0,103970.0,1.08765992]
[1750431660983,1.2768864,103980.0,103970.0,0.32876242]
[1750431661176,1.74682064,103980.0,103970.0,0.18876242]
[1750431661378,1.70282064,103980.0,103970.0,0.01600242]
[1750431661578,1.40277023,103980.0,103970.0,0.01640242]
[1750431661777,1.19906424,103980.0,103970.0,0.84392242]
[1750431661980,1.39282064,103980.0,103970.0,0.84432242]
[1750431662181,1.39282064,103980.0,103970.0,1.03667092]
[1750431662182,0.68197023,103980.0,103970.0,1.03667092]
[1750431662386,0.02993424,103980.0,103970.0,1.07799092]
[1750431662594,0.1923216,103990.0,103980.0,0.19233]
[1750431662784,0.02979394,103990.0,103980.0,1.44589]
[1750431662983,0.6882586,104010.0,104000.0,0.192293]
[1750431663181,0.76612715,104010.0,104000.0,1.020853]
[1750431663695,1.91988355,104010.0,104000.0,0.82896]
[1750431663892,1.83988355,104010.0,104000.0,0.82896]
[1750431664195,1.48988355,104010.0,104000.0,0.0004]
[1750431664391,1.82988355,104010.0,104000.0,0.1732]
[1750431664581,1.04367824,104010.0,104000.0,0.365493]
[1750431664787,1.04367824,104010.0,104000.0,0.365093]
[1750431665095,0.39059775,104010.0,104000.0,0.365493]
[1750431665296,0.02979775,104010.0,104000.0,0.643389]
[1750431665591,0.3608,104020.0,104010.0,0.2083753]
[1750431665788,0.58287839,104020.0,104010.0,0.9507753]
[1750431666093,0.66837839,104020.0,104010.0,1.1240153]
[1750431666290,0.66837839,104020.0,104010.0,0.2083753]
[1750431666487,0.48902838,104020.0,104010.0,1.0381353]
[1750431666794,0.02982239,104020.0,104010.0,2.11498571]
[1750431666996,0.02982239,104020.0,104010.0,1.7649353]
[1750431667489,0.95658448,104020.0,104010.0,1.0382553]
[1750431667695,1.04308448,104020.0,104010.0,1.0382553]
[1750431667886,1.04308448,104020.0,104010.0,1.0386553]
[1750431668087,1.36308448,104020.0,104010.0,0.2087753]
[1750431668396,1.39313489,104020.0,104010.0,1.0384953]
[1750431668596,1.39313489,104020.0,104010.0,1.2284953]
[1750431668597,0.02982239,104020.0,104010.0,1.2284953]
[1750431668786,0.02982239,104020.0,104010.0,1.3144953]
[1750431668988,0.02982239,104020.0,104010.0,1.6752953]
[1750431669385,0.58207839,104020.0,104010.0,0.4847753]
[1750431669590,1.86393479,104020.0,104010.0,1.0371808]
[1750431669788,1.39393479,104020.0,104010.0,0.1888608]
[1750431669989,1.20167879,104020.0,104010.0,0.3815353]
[1750431670194,0.49082838,104020.0,104010.0,0.3815353]
[1750431670493,0.02982239,104020.0,104010.0,0.8323353]
[1750431670694,0.02982239,104020.0,104010.0,0.8261353]
[1750431670892,0.192256,104020.0,104010.0,0.4653353]
[1750431671090,1.04272721,104030.0,104020.0,0.192256]
[1750431671397,1.63699622,104030.0,104020.0,0.83016]
[1750431671602,0.192256,104020.0,104010.0,1.0388001]
[1750431671790,1.35108141,104020.0,104010.0,1.0384001]
[1750431671990,1.39358141,104020.0,104010.0,1.0388001]
[1750431672187,1.72358141,104020.0,104010.0,0.8465408]
[1750431672386,1.90358141,104020.0,104010.0,0.1892608]
[1750431672689,1.233531,104020.0,104010.0,0.3811353]
[1750431672892,0.02986901,104020.0,104010.0,0.8323353]
[1750431673096,0.0897,104030.0,104020.0,0.192256]
[1750431673293,0.67059866,104030.0,104020.0,0.849416]
[1750431673493,1.53855956,104030.0,104020.0,0.83]
[1750431673791,0.85006715,104030.0,104020.0,1.022256]
[1750431673991,0.85006715,104030.0,104020.0,1.022656]
[1750431674389,1.14230465,104030.0,104020.0,1.022656]
[1750431674586,1.60230465,104030.0,104020.0,1.022656]
[1750431674794,1.95235506,104030.0,104020.0,1.022216]
[1750431674992,1.81235506,104030.0,104020.0,1.022216]
[1750431675193,1.52011756,104030.0,104020.0,1.022216]
[1750431675387,0.85006715,104030.0,104020.0,1.022216]
[1750431675595,0.85206715,104030.0,104020.0,1.022216]
[1750431675801,0.49126715,104030.0,104020.0,1.383016]
[1750431675998,0.49326715,104030.0,104020.0,1.383016]
[1750431676200,0.82326715,104030.0,104020.0,1.383016]
[1750431676401,0.49326715,104030.0,104020.0,1.466516]
[1750431676803,0.46956116,104030.0,104020.0,1.466516]
[1750431677000,1.01259856,104030.0,104020.0,1.105716]
[1750431677200,1.84635496,104030.0,104020.0,1.021816]
[1750431677501,1.75635496,104030.0,104020.0,1.022216]
[1750431677800,0.11956116,104030.0,104020.0,1.021816]
[1750431678000,0.005,104030.0,104020.0,1.383016]
[1750431678201,0.005,104030.0,104020.0,1.553616]
[1750431678598,0.001,104060.0,104030.0,0.2402934]
[1750431678899,0.001,104060.0,104050.0,0.90305101]
[1750431679103,0.0855,104080.0,104070.0,0.1921637]
[1750431679305,0.1921452,104080.0,104070.0,0.94269399]
[1750431679505,0.687464,104090.0,104080.0,0.1921452]
[1750431679694,1.01313819,104090.0,104080.0,0.1921452]
[1750431679895,0.1921821,104060.0,104050.0,0.01573734]
[1750431680100,1.6287385,104060.0,104050.0,0.18845734]
[1750431680402,1.44348809,104060.0,104050.0,0.18845734]
[1750431680596,1.7935385,104060.0,104050.0,0.01613734]
[1750431680793,1.44148809,104060.0,104050.0,0.01573734]
[1750431681100,1.44148809,104060.0,104050.0,0.01613734]
[1750431681303,1.7915385,104060.0,104050.0,0.01613734]
[1750431681500,1.7915385,104060.0,104050.0,0.18885734]
[1750431681805,1.7915385,104060.0,104050.0,0.18845734]
[1750431681992,1.7915385,104060.0,104050.0,0.01613734]
[1750431682395,0.1922191,104040.0,104030.0,0.67270242]
[1750431682594,1.2338191,104040.0,104030.0,1.04766002]
[1750431682804,0.4025,104050.0,104040.0,0.1922191]
[1750431683002,0.5569833,104060.0,104050.0,0.1922006]
[1750431683202,0.42010599,104060.0,104050.0,1.1713606]
[1750431683394,0.0464,104060.0,104050.0,1.0213606]
[1750431683602,0.002,104060.0,104050.0,1.3921606]
[1750431683899,0.002,104060.0,104050.0,1.1180606]
[1750431684098,0.002,104060.0,104050.0,2.01111901]
[1750431684303,0.4032,104080.0,104070.0,0.1921637]
[1750431684505,0.1921637,104070.0,104060.0,0.83084]
[1750431684711,1.8291201,104070.0,104060.0,0.83084]
[1750431684904,1.8291201,104070.0,104060.0,1.005]
[1750431685506,0.5953637,104070.0,104060.0,1.197182]
[1750431685709,1.21036969,104070.0,104060.0,1.197182]
[1750431685897,0.98956969,104070.0,104060.0,1.197182]
[1750431686102,0.98956969,104070.0,104060.0,1.197582]
[1750431686103,1.01036969,104070.0,104060.0,1.197582]
[1750431686301,0.001,104070.0,104060.0,1.558382]
[1750431686508,0.001,104070.0,104060.0,1.650882]
[1750431686805,0.001,104070.0,104060.0,1.760882]
[1750431687212,0.6539635,104070.0,104060.0,0.94124]
[1750431687402,1.57836949,104070.0,104060.0,1.77204]
[1750431687607,1.01836949,104070.0,104060.0,1.133422]
[1750431687805,0.0907,104070.0,104060.0,1.964382]
[1750431688105,0.001,104070.0,104060.0,2.326582]
[1750431688310,0.00080007,104070.0,104060.0,2.78451173]
[1750431688504,0.00080007,104070.0,104060.0,3.21669573]
[1750431689003,0.00080007,104070.0,104060.0,3.02451173]
[1750431689407,0.6462266,104090.0,104080.0,0.1921451]
[1750431689613,0.65913259,104090.0,104080.0,1.0237051]
[1750431689906,1.33993259,104090.0,104080.0,1.0237051]
[1750431690112,0.83700599,104090.0,104080.0,1.0237051]
[1750431690311,0.1931266,104090.0,104080.0,1.0237051]
[1750431690513,0.1961266,104090.0,104080.0,1.1100051]
[1750431690711,0.22569552,104090.0,104080.0,1.1100051]
[1750431691008,0.03556892,104090.0,104080.0,1.1100051]
[1750431691212,0.006,104090.0,104080.0,1.6108051]
[1750431691416,0.1981266,104090.0,104080.0,0.7792451]
[1750431691712,0.32220323,104090.0,104080.0,1.4694451]
[1750431691908,0.13007663,104090.0,104080.0,0.2784451]
[1750431692111,0.13007663,104090.0,104080.0,1.4693651]
[1750431692308,0.03557663,104090.0,104080.0,1.81941551]
[1750431692511,0.006,104090.0,104080.0,1.5093651]
[1750431692702,0.1981266,104090.0,104080.0,0.2784451]
[1750431692908,0.58849852,104090.0,104080.0,1.0661851]
[1750431693213,0.12577192,104090.0,104080.0,1.0661851]
[1750431693414,0.12577192,104090.0,104080.0,1.1115851]
[1750431693712,0.12577192,104090.0,104080.0,1.1113451]
[1750431693913,0.12577192,104090.0,104080.0,1.1117451]
[1750431694113,0.31789852,104090.0,104080.0,1.1117451]
[1750431694323,1.01869852,104090.0,104080.0,1.0667451]
[1750431694512,0.12577192,104090.0,104080.0,1.0667451]
[1750431694816,0.31589852,104090.0,104080.0,1.4293451]
[1750431695009,0.31289852,104090.0,104080.0,0.5995451]
[1750431695210,1.14369852,104090.0,104080.0,0.1985451]
[1750431695409,1.04740451,104090.0,104080.0,1.0300251]
[1750431695607,1.88745492,104090.0,104080.0,0.0064]
[1750431695812,2.07960692,104090.0,104080.0,0.0064]
[1750431696014,1.88745492,104090.0,104080.0,0.0064]
[1750431696213,1.88745492,104090.0,104080.0,0.0014]
[1750431696214,1.94304023,104090.0,104080.0,0.0014]
[1750431696412,1.94304023,104090.0,104060.0,0.01747932]
[1750431696413,0.1921635,104070.0,104060.0,0.01747932]
[1750431696613,2.17709182,104070.0,104060.0,1.04198132]
[1750431696809,2.17709182,104070.0,104060.0,1.04118132]
[1750431696810,2.22459182,104070.0,104060.0,1.04118132]
[1750431697014,0.43787192,104070.0,104060.0,1.04118132]
[1750431697215,0.43787192,104070.0,104060.0,1.04158132]
[1750431697418,0.43787192,104070.0,104060.0,1.13228132]
[1750431697616,0.43787192,104070.0,104060.0,1.13268132]
[1750431697914,1.00374141,104070.0,104060.0,1.08678132]
[1750431698113,1.42374141,104070.0,104060.0,0.21006132]
[1750431698315,1.18407791,104070.0,104060.0,1.04130132]
[1750431698514,0.50037192,104070.0,104060.0,1.13740132]
[1750431698713,0.02957192,104070.0,104060.0,1.93825173]
[1750431698916,0.02957192,104070.0,104060.0,1.94025173]
[1750431699512,0.02957192,104070.0,104060.0,1.93825173]
[1750431699706,0.40327791,104070.0,104060.0,0.75456132]
[1750431699912,0.82327791,104070.0,104060.0,0.39476132]
[1750431700109,0.84527791,104070.0,104060.0,1.22540132]
[1750431700307,0.66527791,104070.0,104060.0,1.17910132]
[1750431700512,0.49527791,104070.0,104060.0,1.17950132]
[1750431701021,1.04824141,104070.0,104060.0,0.30206132]
[1750431701211,1.58824141,104070.0,104060.0,1.04294132]
[1750431701412,1.93829182,104070.0,104060.0,0.002]
[1750431701614,1.99387713,104070.0,104060.0,0.0014]
[1750431701815,1.99387713,104070.0,104060.0,0.003]
[1750431702015,1.93829182,104070.0,104060.0,0.0054]
[1750431702219,1.99387713,104070.0,104060.0,0.0054]
[1750431702419,1.99387713,104070.0,104060.0,0.0034]
[1750431702612,1.99487713,104070.0,104060.0,0.0034]
[1750431702813,1.99487713,104070.0,104060.0,0.195582]
[1750431703012,1.64682672,104070.0,104060.0,0.192582]
[1750431703216,1.59024141,104070.0,104060.0,0.192582]
[1750431703414,1.94129182,104070.0,104060.0,0.0004]
[1750431703611,0.192182,104060.0,104050.0,0.17408]
[1750431703827,1.91839563,104060.0,104050.0,0.17408]
[1750431704016,1.91839563,104060.0,104050.0,0.17448]
[1750431704217,0.1922005,104050.0,104040.0,0.3363768]
[1750431704419,1.50277841,104050.0,104040.0,1.1657368]
[1750431704816,0.07607192,104050.0,104040.0,1.1657368]
[1750431705126,0.07607192,104050.0,104040.0,1.87658721]
[1750431705322,0.07607192,104050.0,104040.0,1.97168721]
[1750431705618,0.02957192,104050.0,104040.0,1.97568721]
[1750431705823,0.7420238,104060.0,104050.0,0.1922004]
[1750431706026,1.14519283,104060.0,104050.0,0.1922004]